bitfinex/quotes_BTCUSD_20220211
["timestamp","ask_amount","ask_price","bid_price","bid_amount"]
[1644552869342,0.39192418,43344.0,43334.0,0.137081]
[1644552869343,0.21322054,43343.0,43334.0,0.137081]
[1644552869544,0.21322054,43343.0,43336.0,0.0005399]
[1644552870587,0.33508739,43342.0,43332.0,0.00027281]
[1644552870787,0.33508739,43342.0,43336.0,0.00054187]
[1644552871791,0.26573675,43341.0,43333.0,0.137086]
[1644552872090,0.26573675,43341.0,43336.0,0.00054187]
[1644552872891,0.26573675,43341.0,43334.0,0.00027281]
[1644552873091,0.26573675,43341.0,43336.0,0.00054187]
[1644552873992,0.26573675,43341.0,43334.0,0.00027281]
[1644552874196,0.26573675,43341.0,43336.0,0.00054049]
[1644552874841,0.15769196,43344.0,43337.0,0.137072]
[1644552875038,0.15769196,43344.0,43337.0,0.00027281]
[1644552875239,0.09997907,43345.0,43337.0,0.05770868]
[1644552875440,0.09997907,43345.0,43336.0,0.00054049]
[1644552875840,0.09997907,43345.0,43342.0,0.36919457]
[1644552876241,0.09997907,43345.0,43341.0,0.057708]
[1644552876444,0.09997907,43345.0,43338.0,0.00027281]
[1644552876642,0.09997907,43345.0,43339.0,0.00027281]
[1644552876844,0.09997907,43345.0,43338.0,0.05]
[1644552876845,0.09997907,43345.0,43338.0,0.05027281]
[1644552877443,0.09997907,43345.0,43340.0,0.35933538]
[1644552879193,0.09997907,43345.0,43339.0,0.00027281]
[1644552879398,0.09997907,43345.0,43337.0,0.057714]
[1644552879594,0.09997907,43345.0,43337.0,0.11569981]
[1644552879794,0.09997907,43345.0,43337.0,0.10798581]
[1644552880194,0.09997907,43345.0,43337.0,0.115426]
[1644552880394,0.09997907,43345.0,43339.0,0.057711]
[1644552880594,0.09997907,43345.0,43338.0,0.05]
[1644552880795,0.09997907,43345.0,43338.0,0.00027281]
[1644552880995,0.09997907,43345.0,43337.0,0.00027281]
[1644552881193,0.09997907,43345.0,43336.0,0.46253066]
[1644552881394,0.09997907,43345.0,43336.0,0.46307562]
[1644552881593,0.09997907,43345.0,43337.0,0.057715]
[1644552881842,0.09997907,43345.0,43337.0,0.00027281]
[1644552882041,0.09997907,43345.0,43336.0,0.00054496]
[1644552882438,0.18665816,43341.0,43334.0,0.00027281]
[1644552882639,0.18665816,43341.0,43336.0,0.00054496]
[1644552882640,0.27171474,43340.0,43336.0,0.00054496]
[1644552882841,0.28600622,43339.0,43336.0,0.00054496]
[1644552883641,0.28600622,43339.0,43333.0,0.00027281]
[1644552883841,0.28600622,43339.0,43332.0,0.00027281]
[1644552884041,0.28600622,43339.0,43333.0,0.137088]
[1644552884241,0.28600622,43339.0,43333.0,0.237088]
[1644552884643,0.28600622,43339.0,43333.0,0.1]
[1644552884842,0.28600622,43339.0,43333.0,0.05]
[1644552885041,0.58110823,43339.0,43334.0,0.00054404]
[1644552885242,0.29510201,43340.0,43334.0,0.00054404]
[1644552885442,0.18665816,43341.0,43334.0,0.00054404]
[1644552885691,0.34428568,43344.0,43334.0,0.00054404]
[1644552886090,0.05772131,43343.0,43332.0,0.05799481]
[1644552886293,0.29196972,43342.0,43336.0,0.00054402]
[1644552887295,0.29196972,43342.0,43332.0,0.00027281]
[1644552887296,0.34428568,43343.0,43333.0,0.05]
[1644552887493,0.34428568,43343.0,43336.0,0.00054402]
[1644552887695,0.34428568,43344.0,43336.0,0.00054402]
[1644552888296,0.34428568,43344.0,43336.0,0.05825669]
[1644552888498,0.29393681,43341.0,43331.0,0.00027281]
[1644552888695,0.29393681,43341.0,43336.0,0.00053914]
[1644552889640,0.27461024,43342.0,43330.0,0.40071568]
[1644552889641,0.27461024,43342.0,43332.0,0.00027281]
[1644552889842,0.27461024,43342.0,43336.0,0.00053914]
[1644552890039,0.34428568,43343.0,43336.0,0.00053914]
[1644552890439,0.29554921,43341.0,43336.0,0.00053914]
[1644552890639,0.29554921,43340.0,43336.0,0.00053914]
[1644552890841,0.29554921,43340.0,43334.0,0.05027281]
[1644552891043,0.29554921,43340.0,43336.0,0.00053914]
[1644552891443,0.29554921,43340.0,43336.0,0.00043947]
[1644552891643,0.27820113,43342.0,43336.0,0.00043947]
[1644552891644,0.29554921,43341.0,43336.0,0.00043947]
[1644552892043,0.29554921,43341.0,43334.0,0.00027281]
[1644552892243,0.29554921,43341.0,43335.0,0.057719]
[1644552892643,0.29554921,43340.0,43335.0,0.057719]
[1644552892843,0.29554921,43340.0,43335.0,0.05799181]
[1644552893094,0.29554921,43341.0,43337.0,0.39058237]
[1644552893293,0.29554921,43342.0,43337.0,0.44829637]
[1644552893692,0.29554921,43341.0,43337.0,0.44829637]
[1644552894594,0.29554921,43341.0,43337.0,0.56399218]
[1644552894793,0.29554921,43341.0,43338.0,0.057715]
[1644552894995,0.29554921,43341.0,43338.0,0.05798781]
[1644552895793,0.29554921,43342.0,43338.0,0.05798781]
[1644552898141,0.29554921,43343.0,43338.0,0.05798781]
[1644552898341,0.29554921,43343.0,43339.0,0.057713]
[1644552898544,0.05,43341.0,43334.0,0.00064321]
[1644552898745,0.05,43341.0,43334.0,0.00045306]
[1644552898746,0.69557384,43335.0,43334.0,0.00045306]
[1644552898948,0.323593,43333.0,43328.0,0.06309938]
[1644552899245,0.66848853,43329.0,43328.0,0.06309938]
[1644552899445,1.18582794,43329.0,43328.0,0.06309938]
[1644552899645,1.13645755,43329.0,43328.0,0.06309938]
[1644552900246,1.19419755,43329.0,43328.0,0.06309938]
[1644552900794,1.35192554,43329.0,43328.0,0.06309938]
[1644552901197,1.3726102,43329.0,43328.0,0.06309938]
[1644552901597,0.84044014,43329.0,43328.0,0.06309938]
[1644552901800,1.05015297,43329.0,43328.0,0.06309938]
[1644552902198,0.89242498,43329.0,43328.0,0.06309938]
[1644552902601,1.24864437,43329.0,43328.0,0.06309938]
[1644552902798,1.30638337,43329.0,43328.0,0.06309938]
[1644552902999,1.60190851,43329.0,43328.0,0.06309938]
[1644552903198,1.30384284,43329.0,43328.0,0.06309938]
[1644552903900,1.59936798,43329.0,43328.0,0.06309938]
[1644552904201,1.30384284,43329.0,43328.0,0.06309938]
[1644552904640,3.96314829,43329.0,43328.0,0.06309938]
[1644552904841,3.96496098,43329.0,43328.0,0.06309938]
[1644552905243,3.96780271,43329.0,43328.0,0.06309938]
[1644552905739,3.72160172,43329.0,43328.0,0.06309938]
[1644552907140,3.94678025,43329.0,43328.0,0.06309938]
[1644552907339,3.96500648,43329.0,43328.0,0.06309938]
[1644552907742,3.71884209,43329.0,43328.0,0.06309938]
[1644552908199,3.66110309,43329.0,43328.0,0.06309938]
[1644552908400,3.5033751,43329.0,43328.0,0.06309938]
[1644552908601,1.09027064,43329.0,43328.0,0.06309938]
[1644552909201,1.26988252,43329.0,43328.0,0.07308674]
[1644552909402,1.26988252,43329.0,43328.0,0.06711728]
[1644552909603,1.26988252,43329.0,43328.0,0.07113518]
[1644552909802,1.11216029,43329.0,43328.0,0.07113518]
[1644552910804,1.30906283,43329.0,43328.0,0.07113518]
[1644552911304,1.2903749,43329.0,43328.0,0.07113518]
[1644552912142,1.3481129,43329.0,43328.0,0.07113518]
[1644552913246,1.34495466,43329.0,43328.0,0.07113518]
[1644552914645,1.14646326,43329.0,43328.0,0.07113518]
[1644552914845,1.08872526,43329.0,43328.0,0.07113518]
[1644552915245,1.09091612,43329.0,43328.0,0.07113518]
[1644552916691,1.14865412,43329.0,43328.0,0.07113518]
[1644552917291,1.14752719,43329.0,43328.0,0.07113518]
[1644552917992,1.08978919,43329.0,43328.0,0.07113518]
[1644552918594,0.89288665,43329.0,43328.0,0.07113518]
[1644552918794,0.89382925,43329.0,43328.0,0.03061534]
[1644552918994,1.09073179,43329.0,43328.0,0.03061534]
[1644552919439,0.89389984,43329.0,43328.0,0.03061534]
[1644552920444,0.34575252,43329.0,43328.0,0.03061534]
[1644552920645,0.02215952,43329.0,43328.0,0.03061534]
[1644552921245,0.00275529,43329.0,43328.0,0.03061534]
[1644552921545,0.02263747,43329.0,43328.0,0.03061534]
[1644552922445,0.02263747,43329.0,43328.0,0.16773034]
[1644552923291,0.00275529,43329.0,43328.0,0.16773034]
[1644552923791,0.00275529,43329.0,43328.0,0.03061534]
[1644552924792,0.00275529,43329.0,43328.0,0.16772934]
[1644552926397,0.32634829,43329.0,43328.0,0.03061534]
[1644552927042,0.00275529,43329.0,43328.0,0.03061534]
[1644552928843,0.00275529,43329.0,43326.0,0.05837161]
[1644552929041,0.02653606,43329.0,43327.0,0.05]
[1644552929342,0.2234386,43329.0,43325.0,0.00027054]
[1644552929542,0.2234386,43329.0,43326.0,0.115462]
[1644552930344,0.02653606,43329.0,43326.0,0.115462]
[1644552931992,0.2234386,43329.0,43326.0,0.115462]
[1644552933793,0.2234386,43329.0,43326.0,0.11573254]
[1644552934962,0.2234386,43329.0,43326.0,0.17346154]
[1644552935160,0.00275529,43329.0,43327.0,0.05511024]
[1644552935559,0.00275529,43329.0,43328.0,0.137115]
[1644552936759,0.00275529,43329.0,43328.0,0.183415]
[1644552937362,0.00268945,43329.0,43328.0,0.183415]
[1644552943847,0.00268945,43329.0,43328.0,0.50030856]
[1644552948102,0.00268945,43329.0,43328.0,0.183415]
[1644552950355,0.0008943,43329.0,43328.0,0.18161985]
[1644552950753,0.0008943,43329.0,43328.0,0.28161985]
[1644552950952,0.0008943,43329.0,43328.0,0.57772172]
[1644552951150,0.0008943,43329.0,43328.0,0.28161985]
[1644552951352,0.0008943,43329.0,43328.0,0.59237369]
[1644552951752,0.0008943,43329.0,43328.0,0.28161985]
[1644552952552,0.0019943,43329.0,43328.0,0.28161985]
[1644552955195,0.0011,43329.0,43328.0,0.28161985]
[1644552956595,0.0011,43329.0,43328.0,0.53310409]
[1644552956854,0.0011,43329.0,43328.0,0.23531985]
[1644552957450,0.0011,43329.0,43328.0,0.53129038]
[1644552957650,0.0011,43329.0,43328.0,0.73161985]
[1644552957847,0.0011,43329.0,43328.0,0.43161985]
[1644552958047,0.0011,43329.0,43328.0,1.81637985]
[1644552959045,0.0011,43329.0,43328.0,1.2907382]
[1644552959245,0.0011,43329.0,43328.0,1.31260789]
[1644552960052,0.33882174,43329.0,43328.0,1.35890789]
[1644552960248,0.0011,43329.0,43328.0,1.35890789]
[1644552961199,0.0011,43329.0,43328.0,1.37880747]
[1644552961399,0.0011,43329.0,43328.0,1.35693778]
[1644552962001,0.0011,43329.0,43328.0,0.65339406]
[1644552962200,0.9019839,43329.0,43328.0,0.65339406]
[1644552962398,0.9019839,43329.0,43328.0,0.64839406]
[1644552962798,0.85237133,43329.0,43328.0,0.01989958]
[1644552963201,1.09864526,43329.0,43328.0,0.01989958]
[1644552963600,1.38906403,43329.0,43328.0,0.01989958]
[1644552964000,1.16079312,43329.0,43325.0,0.00027054]
[1644552964205,0.19702495,43326.0,43323.0,0.00027054]
[1644552964448,0.19702495,43326.0,43324.0,0.00064139]
[1644552965450,0.19702495,43326.0,43323.0,0.00027054]
[1644552965648,0.19702495,43326.0,43323.0,0.00064141]
[1644552965849,0.19702495,43326.0,43323.0,0.00091195]
[1644552966549,0.19702495,43326.0,43323.0,0.00027054]
[1644552966753,0.19702495,43326.0,43322.0,0.0603387]
[1644552966950,0.19702495,43326.0,43323.0,0.00027054]
[1644552967147,0.19702495,43326.0,43322.0,0.06006816]
[1644552967148,0.33915079,43324.0,43322.0,0.0603387]
[1644552967348,0.33915079,43324.0,43322.0,0.06006816]
[1644552967550,0.33915079,43324.0,43322.0,0.00233216]
[1644552967954,0.05,43327.0,43322.0,0.00233216]
[1644552967955,0.19702495,43327.0,43322.0,0.00233216]
[1644552968211,0.19702495,43327.0,43322.0,0.0026027]
[1644552969111,0.25888285,43324.0,43323.0,0.057735]
[1644552969312,0.25888285,43324.0,43323.0,0.05800554]
[1644552969514,0.25888285,43324.0,43323.0,0.057735]
[1644552971951,0.25888285,43324.0,43322.0,0.0026027]
[1644552972151,0.25888285,43324.0,43322.0,0.00233216]
[1644552973553,0.30888285,43324.0,43322.0,0.00233216]
[1644552973952,0.25888285,43324.0,43322.0,0.00233216]
[1644552974352,0.05,43323.0,43322.0,0.00233216]
[1644552974552,0.25888285,43324.0,43322.0,0.00233216]
[1644552974753,0.05,43323.0,43322.0,0.00233216]
[1644552975995,0.25888285,43324.0,43322.0,0.00233216]
[1644552978397,0.05,43323.0,43322.0,0.00233216]
[1644552978798,0.25888285,43324.0,43322.0,0.00233216]
[1644552980649,0.30888285,43324.0,43322.0,0.00233216]
[1644552980851,0.25888285,43324.0,43322.0,0.00233216]
[1644552983096,0.26845206,43323.0,43322.0,0.00233216]
[1644552983699,0.31662218,43324.0,43322.0,0.00233216]
[1644552985198,0.31206163,43323.0,43322.0,0.00233216]
[1644552985398,0.05,43323.0,43322.0,0.00233216]
[1644552985599,0.31662218,43324.0,43322.0,0.00233216]
[1644552986198,0.25888285,43324.0,43322.0,0.00233216]
[1644552986400,0.25888285,43324.0,43322.0,0.00223475]
[1644552988246,0.26401986,43323.0,43322.0,0.00223475]
[1644552988850,0.25888285,43324.0,43322.0,0.00223475]
[1644552989052,0.32600888,43326.0,43322.0,0.00223475]
[1644552989350,0.33603657,43325.0,43322.0,0.00250529]
[1644552989550,0.33603657,43325.0,43322.0,0.00314554]
[1644552990599,0.33603657,43325.0,43322.0,0.00250529]
[1644552991601,0.33603657,43325.0,43322.0,0.06024129]
[1644552992602,0.33603657,43325.0,43322.0,0.00250529]
[1644552994343,0.26827077,43326.0,43322.0,0.00250529]
[1644552994645,0.05,43328.0,43322.0,0.00250529]
[1644552994849,0.02032185,43329.0,43322.0,0.06023729]
[1644552995046,0.02032185,43329.0,43322.0,0.00250529]
[1644552995445,0.02032185,43329.0,43327.0,0.33041711]
[1644552995644,0.0011,43329.0,43328.0,0.057722]
[1644552996845,0.0011,43329.0,43328.0,0.107722]
[1644552997545,0.0011,43329.0,43328.0,0.057722]
[1644552997745,0.0011,43329.0,43325.0,0.104033]
[1644552998200,0.0011,43329.0,43325.0,0.154033]
[1644552998701,0.0011,43329.0,43325.0,0.0463]
[1644552998702,0.34155055,43326.0,43325.0,0.0463]
[1644553000104,0.66516055,43326.0,43325.0,0.0463]
[1644553000304,0.34155055,43326.0,43323.0,0.057735]
[1644553000505,0.34155055,43326.0,43323.0,0.05837522]
[1644553001506,0.34155055,43326.0,43323.0,0.057735]
[1644553003352,0.71989494,43326.0,43323.0,0.057735]
[1644553004952,0.76989494,43326.0,43323.0,0.057735]
[1644553005354,0.76989494,43326.0,43322.0,0.00287499]
[1644553005355,0.32361,43325.0,43322.0,0.00287499]
[1644553005596,0.05,43323.0,43322.0,0.00287499]
[1644553005796,0.37361,43323.0,43322.0,0.00287499]
[1644553006397,0.37361,43323.0,43322.0,0.00223475]
[1644553008400,0.61992885,43323.0,43322.0,0.00223475]
[1644553008900,0.24631885,43323.0,43322.0,0.00223475]
[1644553009551,0.29631885,43323.0,43322.0,0.00223475]
[1644553010150,0.24631885,43323.0,43322.0,0.00223475]
[1644553011149,0.31559445,43325.0,43322.0,0.00223475]
[1644553011351,0.05,43323.0,43322.0,0.00223475]
[1644553012452,0.02044051,43325.0,43322.0,0.00223475]
[1644553012650,0.07044051,43325.0,43322.0,0.05997075]
[1644553012850,0.02044051,43325.0,43322.0,0.05989975]
[1644553013501,0.07044051,43325.0,43322.0,0.05989975]
[1644553013702,0.05,43325.0,43322.0,0.05989975]
[1644553013902,0.63694898,43326.0,43322.0,0.05989975]
[1644553014103,0.34539843,43325.0,43322.0,0.05989975]
[1644553014304,0.05,43323.0,43322.0,0.05989975]
[1644553014505,0.29539843,43325.0,43322.0,0.05989975]
[1644553014903,0.05,43323.0,43322.0,0.05989975]
[1644553015705,0.29539843,43325.0,43322.0,0.05989975]
[1644553015904,0.05,43323.0,43322.0,0.05989975]
[1644553016105,0.29539843,43325.0,43322.0,0.05989975]
[1644553018365,0.29539843,43324.0,43322.0,0.0508402]
[1644553018962,0.29539843,43324.0,43322.0,0.05111074]
[1644553019165,0.29539843,43325.0,43322.0,0.05111074]
[1644553019764,0.31408395,43325.0,43322.0,0.05111074]
[1644553021601,0.31408395,43325.0,43323.0,0.057737]
[1644553021801,0.31408395,43325.0,43323.0,0.05800754]
[1644553021802,0.29539843,43325.0,43323.0,0.05800754]
[1644553022105,0.29539843,43324.0,43323.0,0.05800754]
[1644553023002,0.29539843,43324.0,43323.0,0.00027054]
[1644553023203,0.29539843,43324.0,43322.0,0.05800754]
[1644553023404,0.37361,43323.0,43322.0,0.00027054]
[1644553023604,0.37361,43323.0,43321.0,0.01091079]
[1644553023903,0.05,43323.0,43321.0,0.01091079]
[1644553024352,0.05,43323.0,43321.0,0.01027054]
[1644553027651,0.32361,43322.0,43321.0,0.01027054]
[1644553027851,0.05,43323.0,43321.0,0.01027054]
[1644553028103,0.32361,43322.0,43321.0,0.01027054]
[1644553028304,0.05,43323.0,43321.0,0.01027054]
[1644553028604,0.32361,43322.0,43321.0,0.01027054]
[1644553028803,0.34539843,43323.0,43321.0,0.01027054]
[1644553029810,0.05,43323.0,43321.0,0.01027054]
[1644553032860,0.32361,43322.0,43321.0,0.06027054]
[1644553033060,0.05,43323.0,43321.0,0.06027054]
[1644553033261,0.32361,43322.0,43321.0,0.06027054]
[1644553033660,0.05,43323.0,43321.0,0.06027054]
[1644553033862,0.32361,43322.0,43321.0,0.06027054]
[1644553034060,0.05,43323.0,43321.0,0.06027054]
[1644553034662,0.32361,43322.0,43321.0,0.06027054]
[1644553034862,0.05,43323.0,43321.0,0.06027054]
[1644553035063,0.32361,43322.0,43321.0,0.06027054]
[1644553035366,0.05,43323.0,43321.0,0.06027054]
[1644553035367,0.37361,43323.0,43321.0,0.06027054]
[1644553035605,0.66900843,43323.0,43321.0,0.06027054]
[1644553035806,0.37361,43323.0,43321.0,0.01027054]
[1644553036005,0.32361,43322.0,43321.0,0.01027054]
[1644553036207,0.61488386,43322.0,43321.0,0.01027054]
[1644553037706,0.66488386,43322.0,43321.0,0.01027054]
[1644553038307,0.66488386,43322.0,43321.0,0.00872862]
[1644553038509,0.76488386,43322.0,43321.0,0.00872862]
[1644553038708,1.10951537,43322.0,43321.0,0.00872862]
[1644553038908,1.24818686,43322.0,43321.0,0.00872862]
[1644553039352,1.24837254,43322.0,43321.0,0.00872862]
[1644553039754,1.26908187,43322.0,43321.0,0.00872862]
[1644553040157,1.02376764,43322.0,43321.0,0.00872862]
[1644553040356,1.26906448,43322.0,43321.0,0.00872862]
[1644553040560,1.02377051,43322.0,43321.0,0.00872862]
[1644553040757,0.32361,43319.0,43317.0,0.001]
[1644553040961,0.37361,43318.0,43317.0,0.001]
[1644553041357,0.81843914,43318.0,43317.0,0.001]
[1644553041559,1.15589232,43318.0,43317.0,0.001]
[1644553041757,1.22362088,43318.0,43317.0,0.001]
[1644553041958,1.36234843,43318.0,43317.0,0.001]
[1644553042259,2.12729776,43318.0,43317.0,0.001]
[1644553042458,2.12729776,43318.0,43317.0,0.00084724]
[1644553042459,1.47010787,43318.0,43317.0,0.00084724]
[1644553042658,1.37010787,43318.0,43317.0,0.00084724]
[1644553043304,1.42010787,43318.0,43317.0,0.00084724]
[1644553043907,1.4384219,43318.0,43317.0,0.00084724]
[1644553045710,1.42010787,43318.0,43317.0,0.00084724]
[1644553045911,1.44033131,43318.0,43317.0,0.00084724]
[1644553047360,1.35160376,43318.0,43317.0,0.00084724]
[1644553047757,1.46991682,43318.0,43317.0,0.00084724]
[1644553048058,1.48819153,43318.0,43317.0,0.00084724]
[1644553048659,0.33986266,43314.0,43312.0,0.0256813]
[1644553048858,0.59696045,43313.0,43312.0,0.0256813]
[1644553049061,0.431374,43313.0,43312.0,0.0256813]
[1644553049658,0.65020909,43313.0,43312.0,0.0256813]
[1644553052109,0.92514132,43313.0,43312.0,0.0256813]
[1644553053614,0.97514132,43313.0,43312.0,0.0256813]
[1644553053811,1.04527339,43313.0,43312.0,0.0256813]
[1644553054013,1.04527339,43313.0,43303.0,0.0276813]
[1644553054014,0.92458,43312.0,43303.0,0.0276813]
[1644553054215,0.92458,43312.0,43303.0,0.001]
[1644553054216,0.431386,43304.0,43303.0,0.001]
[1644553054672,0.85621293,43304.0,43303.0,0.001]
[1644553054968,0.32361,43303.0,43295.0,0.0008]
[1644553055167,0.25182957,43298.0,43295.0,0.0008]
[1644553055367,0.05,43296.0,43295.0,0.0008]
[1644553055666,0.25182957,43298.0,43296.0,0.1]
[1644553055866,0.60771193,43296.0,43295.0,0.0008]
[1644553056067,0.60771193,43296.0,43295.0,0.00106774]
[1644553058307,0.32361,43296.0,43295.0,0.00106774]
[1644553058706,0.05777748,43298.0,43295.0,0.00106774]
[1644553058909,0.32361,43296.0,43295.0,0.00106774]
[1644553059106,0.05777748,43298.0,43295.0,0.00106774]
[1644553059307,0.32361,43297.0,43295.0,0.00106774]
[1644553059508,0.32361,43296.0,43295.0,0.00106774]
[1644553059707,0.28782627,43297.0,43295.0,0.00106774]
[1644553059907,0.05777748,43298.0,43295.0,0.00106774]
[1644553059908,0.32361,43296.0,43295.0,0.00106774]
[1644553060107,0.05777748,43298.0,43295.0,0.00106774]
[1644553060310,0.32361,43297.0,43295.0,0.00106774]
[1644553061512,0.30220996,43296.0,43295.0,0.00106774]
[1644553061708,0.62581996,43296.0,43295.0,0.00106774]
[1644553062158,0.32361,43296.0,43295.0,0.00106774]
[1644553062360,0.32361,43298.0,43295.0,0.00106774]
[1644553063458,0.32361,43296.0,43295.0,0.00106774]
[1644553064259,0.64098671,43296.0,43295.0,0.00106774]
[1644553065460,0.92974715,43296.0,43295.0,0.00106774]
[1644553067913,0.95143444,43296.0,43295.0,0.00106774]
[1644553068515,1.05143444,43296.0,43295.0,0.00106774]
[1644553068716,0.95143444,43296.0,43295.0,0.00106774]
[1644553069961,0.95143444,43296.0,43295.0,0.0008]
[1644553070162,0.95143444,43296.0,43295.0,0.00106766]
[1644553070564,0.92974715,43296.0,43295.0,0.00106766]
[1644553070763,0.95135784,43296.0,43295.0,0.00106766]
[1644553071966,0.95155209,43296.0,43295.0,0.00106766]
[1644553073808,0.92974715,43296.0,43295.0,0.00106766]
[1644553074009,0.94882162,43296.0,43295.0,0.00106766]
[1644553074208,0.63144491,43296.0,43295.0,0.00106766]
[1644553075012,0.34268447,43296.0,43295.0,0.00106766]
[1644553075516,0.01907447,43296.0,43295.0,0.04736766]
[1644553075912,0.01936783,43302.0,43295.0,0.04736766]
[1644553076514,0.01936783,43302.0,43298.0,0.115519]
[1644553076713,0.01936783,43302.0,43299.0,0.0463]
[1644553076962,0.01936783,43302.0,43299.0,0.10406]
[1644553077265,0.01936783,43302.0,43299.0,0.10432766]
[1644553077760,0.01436783,43302.0,43299.0,0.10432766]
[1644553077959,0.39844303,43306.0,43300.0,0.057765]
[1644553078160,0.45620813,43306.0,43300.0,0.05803266]
[1644553078360,0.45620813,43306.0,43300.0,0.10803266]
[1644553078560,0.45620813,43306.0,43301.0,0.0005957]
[1644553078761,0.45620813,43306.0,43301.0,0.11639236]
[1644553079161,0.45620813,43306.0,43302.0,0.05]
[1644553079360,0.0577651,43306.0,43302.0,0.05026766]
[1644553079766,0.0577651,43306.0,43302.0,0.10863147]
[1644553080711,0.0577651,43306.0,43302.0,0.10803266]
[1644553080912,0.0577651,43306.0,43302.0,0.10863147]
[1644553081313,0.0577651,43306.0,43302.0,0.05863147]
[1644553081512,0.32361,43305.0,43302.0,0.05863147]
[1644553082012,0.05776711,43305.0,43302.0,0.05803266]
[1644553083412,0.05776711,43305.0,43302.0,0.057765]
[1644553083813,0.05776711,43305.0,43302.0,0.05803266]
[1644553084570,0.05776711,43305.0,43302.0,0.057765]
[1644553084769,0.05776711,43305.0,43302.0,0.05803266]
[1644553084973,0.31661989,43308.0,43302.0,0.05803266]
[1644553085371,0.29525214,43307.0,43302.0,0.05803266]
[1644553085570,0.02136775,43308.0,43302.0,0.05803266]
[1644553085770,0.02136775,43308.0,43303.0,0.00059859]
[1644553085970,0.02136775,43308.0,43303.0,0.05862925]
[1644553086170,0.34422312,43308.0,43303.0,0.05836159]
[1644553086370,0.34422312,43308.0,43303.0,0.05862925]
[1644553086571,0.32285537,43308.0,43303.0,0.05862925]
[1644553086774,0.32285537,43308.0,43303.0,0.05803066]
[1644553086974,0.32285537,43308.0,43303.0,0.05862926]
[1644553087973,0.32285537,43308.0,43303.0,0.05803066]
[1644553088213,0.61810751,43308.0,43303.0,0.05862926]
[1644553088814,0.32285537,43308.0,43303.0,0.05862926]
[1644553089014,0.61810751,43308.0,43303.0,0.05862926]
[1644553089215,0.61810751,43308.0,43303.0,0.05803066]
[1644553089414,0.61810751,43308.0,43303.0,0.05862926]
[1644553090320,0.61810751,43308.0,43303.0,0.05803066]
[1644553090515,0.61810751,43308.0,43303.0,0.11639026]
[1644553091317,0.61810751,43308.0,43303.0,0.05862926]
[1644553091517,0.32361,43307.0,43303.0,0.05803066]
[1644553091717,0.29525214,43306.0,43303.0,0.05862926]
[1644553091965,0.32361,43305.0,43303.0,0.0583616]
[1644553092167,0.32361,43306.0,43303.0,0.0583616]
[1644553092363,0.29525214,43306.0,43303.0,0.0583616]
[1644553092564,0.29525214,43307.0,43303.0,0.0583616]
[1644553092866,0.29525214,43307.0,43303.0,0.057763]
[1644553093264,0.29525214,43307.0,43303.0,0.05803066]
[1644553093765,0.29525214,43307.0,43304.0,0.40818734]
[1644553093962,0.29525214,43307.0,43304.0,0.408455]
[1644553094164,0.29525214,43307.0,43304.0,0.165522]
[1644553094662,0.29525214,43307.0,43304.0,0.16578966]
[1644553095466,0.29525214,43307.0,43304.0,0.107761]
[1644553095711,0.29525214,43307.0,43304.0,0.10802866]
[1644553096915,0.29525214,43309.0,43306.0,0.08096574]
[1644553097111,0.020011,43313.0,43307.0,0.0963]
[1644553097712,0.020011,43313.0,43308.0,0.00059858]
[1644553097915,0.00059849,43315.0,43311.0,0.42145782]
[1644553098116,0.00059849,43315.0,43311.0,0.63694582]
[1644553098717,0.34446083,43318.0,43311.0,0.63694582]
[1644553099014,0.00056296,43315.0,43311.0,0.58694582]
[1644553099215,0.00056296,43315.0,43312.0,0.219536]
[1644553099462,0.00056296,43315.0,43312.0,0.161792]
[1644553099665,0.00056296,43315.0,43313.0,0.30202823]
[1644553099866,0.00056296,43315.0,43313.0,0.1963]
[1644553100164,0.00056295,43316.0,43315.0,0.057743]
[1644553100465,0.00056295,43316.0,43314.0,0.173228]
[1644553101363,0.00056414,43317.0,43316.0,0.057746]
[1644553102364,0.29536353,43319.0,43316.0,0.057746]
[1644553102565,0.29536353,43319.0,43316.0,0.115493]
[1644553102764,0.29594861,43319.0,43316.0,0.115493]
[1644553103417,0.00058508,43319.0,43316.0,0.115493]
[1644553103720,0.29536353,43320.0,43316.0,0.165493]
[1644553104017,0.2959486,43320.0,43316.0,0.165493]
[1644553104416,0.00058507,43320.0,43316.0,0.165493]
[1644553104618,0.00058507,43320.0,43319.0,0.39445543]
[1644553104817,0.317363,43321.0,43320.0,0.057741]
[1644553106018,0.29536353,43321.0,43320.0,0.057741]
[1644553106419,0.34536353,43322.0,43320.0,0.057741]
[1644553106620,0.05,43322.0,43321.0,0.29565436]
[1644553106884,0.05,43322.0,43320.0,0.2076283]
[1644553107076,0.05,43322.0,43321.0,0.0463]
[1644553107775,0.05,43322.0,43321.0,0.211758]
[1644553107976,0.05,43322.0,43321.0,0.0963]
[1644553109978,0.05,43322.0,43321.0,0.05]
[1644553110178,0.05,43322.0,43319.0,0.50219643]
[1644553112717,0.04988766,43322.0,43319.0,0.50219643]
[1644553113620,0.04988766,43322.0,43319.0,0.55994043]
[1644553114119,0.04988766,43322.0,43319.0,0.61768043]
[1644553114563,0.04988766,43322.0,43320.0,0.115473]
[1644553116765,0.04988766,43322.0,43319.0,0.55474199]
[1644553117366,0.04988766,43322.0,43320.0,0.115473]
[1644553117565,0.04988766,43322.0,43321.0,0.29733727]
[1644553117768,0.04988766,43322.0,43321.0,0.39363727]
[1644553118218,0.04988766,43322.0,43321.0,0.54363727]
[1644553118820,0.04988766,43322.0,43321.0,0.60136327]
[1644553119019,0.04988766,43322.0,43321.0,0.304026]
[1644553120422,0.04988766,43322.0,43321.0,0.204026]
[1644553120622,0.04988766,43322.0,43321.0,0.304026]
[1644553122978,0.04988766,43322.0,43321.0,0.204026]
[1644553123178,0.04988766,43322.0,43321.0,0.304026]
[1644553125485,0.04988766,43322.0,43321.0,0.204026]
[1644553125718,0.04988766,43322.0,43321.0,0.304026]
[1644553125918,0.04988766,43322.0,43321.0,0.32473414]
[1644553127524,0.04988766,43322.0,43321.0,0.27473414]
[1644553127922,0.04988766,43322.0,43321.0,0.29441353]
[1644553128121,0.04988766,43322.0,43321.0,0.17370539]
[1644553130078,0.04988766,43322.0,43321.0,0.154026]
[1644553133315,0.04988766,43322.0,43321.0,0.46065432]
[1644553133516,0.0011,43329.0,43323.0,0.057726]
[1644553133717,0.0011,43329.0,43325.0,0.057726]
[1644553133916,0.0011,43329.0,43328.0,0.07098334]
[1644553134321,0.0011,43329.0,43328.0,0.12098334]
[1644553134516,0.0011,43329.0,43328.0,0.4233825]
[1644553134716,0.0011,43329.0,43328.0,0.5233825]
[1644553135117,0.0011,43329.0,43328.0,0.50239916]
[1644553136221,0.0011,43329.0,43328.0,0.56012516]
[1644553136878,0.0011,43329.0,43328.0,0.58313884]